Cogmind - Beta 13 @@@ ROGUE MODE // 2024.07.03 @ 18:49:40 Player: Juicifer Result: Destroyed by Y-45 Defender with Beam Rifle Performance ------------- Evolutions (1) 500 Regions Visited (2) 400 Robots Destroyed (43) 215 Value Destroyed (1099) 1099 Prototype IDs (3) 60 Alien Tech Used (0) 0 Bonus (0) 0 TOTAL SCORE: 2274 Bonus ------- None Cogmind --------- Core Integrity 0/400 Matter 234/300 Energy 97/100 System Corruption 0% Temperature Cool (9) Movement Core (150) Ox2 Location -9/Materials Parts ------- > --- POWER (1) -------- (None) > --- PROPULSION (2) --- (None) > --- UTILITY (4) ------ Small Storage Unit > --- WEAPON (2) ------- Great Maul > --- INVENTORY (8) ---- Heat Sink Seismic Detector Spread Laser Spread Laser Heavy Particle Gun Peak State ------------ > --- POWER ------------ Ion Engine > --- PROPULSION ------- Light Treads Light Treads > --- UTILITY ---------- Improved Heat Sink Improved Heat Sink Small Storage Unit ECM Suite > --- WEAPON ----------- Heavy Particle Gun Heavy Particle Gun > --- INVENTORY -------- Heat Sink Huge Storage Unit Medium Matter Pod Weapon Shielding Grenade Launcher Great Maul Great Maul [Rating: 20] Favorites ----------- Power Ion Engine Engine Ion Engine Propulsion Light Treads Treads Light Treads Leg Aluminum Leg Utility Small Storage Unit Device ECM Suite Storage Small Storage Unit Protection Light Armor Plating Weapon Grenade Launcher Energy Gun Heavy Particle Gun Ballistic Gun Assault Rifle Launcher Grenade Launcher Impact Weapon Great Maul Build | -11 -10 -9 ------- Run | Yrd Mat Mat Slots Evolved 2 | . . 2 Power . | . . . Propulsion . | . . . Utility 2 | . . 2 Weapon . | . . . Parts Attached 41 | 7 7 27 Power 5 | 2 2 1 Engine 5 | 2 2 1 Core . | . . . Reactor . | . . . Propulsion 8 | 2 2 4 Treads 6 | 2 2 2 Leg 2 | . . 2 Wheel . | . . . Hover . | . . . Flight . | . . . Utility 13 | 1 1 11 Device 9 | . . 9 Storage 2 | 1 . 1 Processor . | . . . Hackware . | . . . Protection 2 | . 1 1 Artifact . | . . . Weapon 15 | 2 2 11 Energy Gun 5 | . . 5 Energy Cannon . | . . . Ballistic Gun 4 | 2 1 1 Ballistic Cannon . | . . . Launcher 3 | . 1 2 Special Weapon . | . . . Impact Weapon 3 | . . 3 Slashing Weapon . | . . . Piercing Weapon . | . . . Special Melee Weapon . | . . . Unidentified Prototypes 1 | . . 1 Parts Lost 9 | . . 9 Power 1 | . . 1 Propulsion 2 | . . 2 Utility 3 | . . 3 Weapon 3 | . . 3 Highest Loss Streak 5 | . . 5 To Critical Strikes . | . . . Average Slot Usage (%) 90 | . 97 82 Engine 11 | . 13 8 Treads 22 | . 27 15 Device 10 | . . 22 Storage 11 | . 14 8 Protection 9 | . 12 7 Energy Gun 4 | . . 9 Ballistic Gun 9 | . 15 3 Launcher 7 | . 12 2 Impact Weapon 1 | . . 3 Naked Turns 63 | . . 63 Heaviest Build 28 | 12 18 28 Greatest Support 40 | 40 40 40 Greatest Overweight (x) 6 | . . 6 Average Overweight (x) . | . . . Largest Inventory Capacity 8 | 8 8 8 Average Capacity 7 | 7 8 7 Most Carried 8 | 5 8 8 Average Carried 5 | . 6 4 Final Capacity 8 | 8 8 8 Final Carried 8 | . 8 5 Class Distribution -------------------- 100% | Mutant Dominant Class ---------------- Mutant | -10/Materials Mutant | -9/Materials Resources | -11 -10 -9 ----------- Run | Yrd Mat Mat Matter Collected 1044 | 214 413 417 Remotely . | . . . Salvage Created 1140 | . 572 568 Parts 85 | . 45 40 Haulers Intercepted . | . . . Recyclers Shooed 7 | . 2 5 Parts Field Recycled 10 | . . 10 Retrieved Matter 53 | . . 53 Parts Self-Destructed . | . . . Prevented . | . . . Kills | -11 -10 -9 ------- Run | Yrd Mat Mat Combat Hostiles Destroyed 29 | . 18 11 Melee 1 | . . 1 Guns 12 | . 6 6 AOE 16 | . 12 4 Classes Destroyed 9 | . 6 3 Worker 3 | . 1 2 Recycler 3 | . 1 2 Mechanic 1 | . . 1 Operator 2 | . 1 1 Watcher 5 | . 3 2 Swarmer 6 | . 6 . Grunt 20 | . 12 8 Duelist 1 | . . 1 Sentry 2 | . . 2 Best Kill Streak 6 | . 6 3 Combat Bots Only 5 | . 5 3 Max Kills in Single Turn 4 | . 4 2 Gunslinging . | . . . Exploded 4 | . 4 1 Melee 1 | . . 1 Uniques/NPCs Destroyed . | . . . Combat | -11 -10 -9 -------- Run | Yrd Mat Mat Hostile Shots Fired 223 | . 94 129 Missed 67 | . 31 36 Damage Taken 2023 | . 701 1322 Core 528 | . 116 412 Absorbed by Shields . | . . . Regen/Repaired (Parts) 50 | . 50 . Core Remaining (%) 76 | 100 53 . Volleys Fired 129 | . 72 57 Largest 2 | . 2 2 Hottest 120 | . 50 120 Shots Fired 192 | . 115 77 Gun 160 | . 94 66 Cannon . | . . . Launcher 32 | . 21 11 Special . | . . . Kinetic 120 | . 94 26 Thermal 40 | . . 40 Explosive 32 | . 21 11 Electromagnetic . | . . . Robot Hit Streak 11 | . 11 7 Robot Miss Streak 7 | . 6 7 Penetration Max . | . . . Secondary Targets . | . . . Shots Hit Robots 105 | . 54 51 Core Hits 88 | . 38 50 Critical Kills . | . . . Critical Parts Destroyed . | . . . Critical Strikes . | . . . Melee Attacks 1 | . . 1 Impact 1 | . . 1 Slashing . | . . . Piercing . | . . . Sneak Attacks . | . . . Combat Hostiles . | . . . Follow-up Attacks . | . . . Damage Inflicted 2810 | . 1462 1348 Guns 1288 | . 529 759 Cannons . | . . . Explosions 1469 | . 933 536 Melee 44 | . . 44 Ramming 9 | . . 9 Kinetic 765 | . 529 236 Thermal 523 | . . 523 Explosive 1469 | . 933 536 Electromagnetic . | . . . Impact 44 | . . 44 Slashing . | . . . Piercing . | . . . Highest Corruption . | . . . Average Corruption . | . . . Corruption Purged . | . . . Corruption Blocked . | . . . Overload Shots . | . . . Overflow Damage 24 | . 23 1 Projectiles . | . . . Explosions 24 | . 23 1 Melee . | . . . Knockbacks . | . . . Impact . | . . . Kinetic . | . . . Secondary . | . . . Self-Inflicted Damage 100 | . 66 34 Shots 4 | . 3 1 Rammed 2 | . . 2 Targets Rammed 3 | . . 3 Kicked . | . . . Crushed 1 | . . 1 Highest Temperature 195 | . 52 195 Average Temperature 46 | . 19 66 Received Heat Transfer 648 | . 177 471 Siege Activations . | . . . Robots Corrupted . | . . . Combat Hostiles . | . . . Parts Fried . | . . . Impact Corruptions . | . . . Robots Melted . | . . . Combat Hostiles . | . . . Parts Melted . | . . . Heat Transferred 833 | . . 833 Parts Sabotaged . | . . . Parts Stolen . | . . . Parts Stripped . | . . . Power Chain Reactions . | . . . Alert | -11 -10 -9 ------- Run | Yrd Mat Mat Peak Influence 371 | . 337 371 Initial 92 | . . 92 Average 179 | . 180 186 Maximum Alert Level 1 | . 1 1 Low Security (%) 49 | 100 51 44 Level 1 50 | . 48 55 Level 2 . | . . . Level 3 . | . . . Level 4 . | . . . Level 5 . | . . . High Security . | . . . Max Security . | . . . Squads Dispatched 7 | . 5 2 Investigation 4 | . 3 1 Extermination . | . . . Reinforcement 3 | . 2 1 Assault . | . . . Garrison . | . . . Intercept . | . . . Searches Triggered . | . . . Construction Impeded . | . . . Haulers Reinforced . | . . . Active Scanning Responses . | . . . Cargo Convoy Interrupts . | . . . Stealth | -11 -10 -9 --------- Run | Yrd Mat Mat Distress Signals 3 | . 1 2 Communications Jammed . | . . . Distress Signals . | . . . Times Spotted 50 | . 28 22 Peak Tracking Total 7 | . 6 7 Tactical Retreats . | . . . Traps | -11 -10 -9 ------- Run | Yrd Mat Mat Traps Triggered 4 | . 1 3 Indirectly . | . . . Trap Hack Attempts . | . . . Triggered . | . . . Disarmed . | . . . Reprogrammed . | . . . Reused . | . . . Traps Extracted . | . . . Installed . | . . . Triggered . | . . . Machines | -11 -10 -9 ---------- Run | Yrd Mat Mat Machines Disabled 8 | . 4 4 Max in Single Turn 2 | . 1 2 Machines Repaired . | . . . Machines Dismantled . | . . . Machines Sabotaged . | . . . Overloaded Fab Kills . | . . . Hacking | -11 -10 -9 --------- Run | Yrd Mat Mat Machines Accessed 10 | . 7 3 Terminals 6 | . 4 2 Fabricators . | . . . Repair Stations 1 | . 1 . Recycling Units 2 | . 2 . Scanalyzers 1 | . . 1 Garrison Access . | . . . Total Hacks 24 | . 17 7 Successful 19 | . 14 5 Failed 5 | . 3 2 Catastrophic 2 | . 2 . Database Lockouts . | . . . Manual . | . . . Terminals 12 | . 7 5 Fabricators . | . . . Repair Stations 3 | . 3 . Recycling Units 7 | . 7 . Scanalyzers 2 | . . 2 Garrison Access . | . . . Terminal Hacks 8 | . 5 3 Record 4 | . 1 3 Robot Analysis 1 | . 1 . Prototype ID Bank 1 | . 1 . Recall Reinforcements 1 | . 1 . Zone Layout 1 | . 1 . Fabricator Hacks . | . . . Repair Station Hacks 2 | . 2 . Scan Component 1 | . 1 . Repair 1 | . 1 . Recycling Unit Hacks 7 | . 7 . Recycle Component 3 | . 3 . Process 1 | . 1 . Report Inventory 1 | . 1 . Retrieve Matter 2 | . 2 . Scanalyzer 2 | . . 2 Insert Component 1 | . . 1 Analyze 1 | . . 1 Garrison Access Hacks . | . . . Unauthorized Hacks . | . . . Terminals . | . . . Fabricators . | . . . Repair Stations . | . . . Recycling Units . | . . . Scanalyzers . | . . . Garrison Access . | . . . Data Cores Recovered . | . . . Used . | . . . Hacking Detections 6 | . 5 1 Full Trace Events 5 | . 4 1 Feedback Events . | . . . Feedback Blocked . | . . . Robot Schematics Acquired . | . . . Robots Built . | . . . Authchips . | . . . Time . | . . . Total Robot Build Rating . | . . . Part Schematics Acquired 1 | . . 1 Parts Built . | . . . Authchips . | . . . Time . | . . . Total Part Build Rating . | . . . Parts Repaired 1 | . 1 . Time 26 | . 26 . Parts Recycled 3 | . 3 . Recycled Matter 183 | . 183 . Retrieved Matter . | . . . Retrieved Components . | . . . Parts Scanalyzed 1 | . . 1 Part Schematics Acquired 1 | . . 1 Parts Damaged . | . . . Bothacking | -11 -10 -9 ------------ Run | Yrd Mat Mat Used RIF Installer . | . . . Robots Hacked . | . . . Non-combat . | . . . Combat . | . . . Robot Hacks Applied . | . . . Relay Couplers Released . | . . . Fabnet Peak Effective % . | . . . Robots Rewired . | . . . Allies Hacked . | . . . Hacks Repelled . | . . . Allies | -11 -10 -9 -------- Run | Yrd Mat Mat Total Allies . | . . . Largest Group . | . . . Highest-Rated Group . | . . . Highest-Rated Ally . | . . . Total Orders . | . . . Ally Attacks . | . . . Total Damage . | . . . Kills . | . . . Allies Corrupted . | . . . Allies Melted . | . . . Intel | -11 -10 -9 ------- Run | Yrd Mat Mat Robot Analysis Total 1 | . 1 . Derelict Logs Recovered . | . . . Drone Launches . | . . . Drone Recoveries . | . . . Exploration | -11 -10 -9 ------------- Run | Yrd Mat Mat Turns Passed 2765 | 64 1453 1248 Spaces Moved 1487 | 39 779 669 Core 172 | 11 . 161 Treads 1285 | 28 779 478 Legs 30 | . . 30 Wheels . | . . . Hover . | . . . Flight . | . . . Fastest Speed 50 | 50 160 50 Average Speed 154 | 128 160 149 Slowest Speed 350 | 160 160 350 Overloaded Moves . | . . . Propulsion Burnouts . | . . . Robots Hopped . | . . . Cave-ins Triggered . | . . . Exploration Rate (%) 43 | 3 89 39 Regions Visited 2 Branch Regions . Pre-discovered Areas . | . . . Known Exits Taken . | . . . Unknown Exits Taken 2 | 1 1 . Scrap Searched . | . . . Spaces Dug . | . . . Terrain Destroyed 174 | . 92 82 Melee . | . . . Projectile . | . . . AOE 174 | . 92 82 Terrain Rammed . | . . . Walls Destroyed . | . . . Machines Disabled . | . . . Actions | -11 -10 -9 --------- Run | Yrd Mat Mat Total 1784 | 53 882 849 Wait 43 | . 3 40 Move 1485 | 38 778 669 Hop . | . . . Pick Up 51 | 7 17 27 Fast Attach . | . . . Attach 41 | 7 7 27 Detach 7 | . 1 6 Swap . | . . . Drop 24 | 1 4 19 Fire 129 | . 72 57 Melee 1 | . . 1 Ram . | . . . Kick . | . . . Crush 3 | . . 3 Escape Stasis . | . . . Rewire . | . . . Trap . | . . . Miscellaneous . | . . . Route ------- -11/Scrapyard -10/Materials (discovered 5 exits: *Mat x3 / [*Min x2]) -9/Materials (discovered 2 exits: [*Mat] / [*Min]) History --------- Turn | Location | Event 31 | -11/Scrapyard | Discovered new exit (range 15) 65 | -11/Scrapyard | Entered Materials 300 | -10/Materials | Build established: Mutant 429 | -10/Materials | Discovered new exit (range 16) 535 | -10/Materials | Discovered new exit (range 7) 607 | -10/Materials | Repaired Lgt. Treads 611 | -10/Materials | Discovered new exit (range 15) 870 | -10/Materials | Discovered new exit (range 15) 1024 | -10/Materials | Discovered new exit (range 5) 1518 | -10/Materials | Entered another Materials area 1518 | -9/Materials | Evolved 2 slots: Utility x2 1803 | -9/Materials | Discovered new exit (range 15) 2670 | -9/Materials | Lost 3 parts (1p2n) 2730 | -9/Materials | Discovered new exit (range 8) 2744 | -9/Materials | Core integrity fell below 50% 2762 | -9/Materials | Core integrity fell below 20% 2766 | -9/Materials | Destroyed by Y-45 Defender with Beam Rifle Last Messages --------------- R-06 Scavenger collects Com. Wheel. Acquired Hvy. Assault Rifle. K-01 Serf collects debris. Hrd. Light Armor Plating destroyed. Critical hit (Burn: +37). R-06 Scavenger collects Wheel. R-06 Scavenger suffers critical hit (Burn). R-06 Scavenger collects Lgt. Ion Engine. ECM Suite destroyed. R-06 Scavenger collects Sml. Matter Pod. R-06 Scavenger collects Com. Wheel. K-01 Serf collects debris. Hvy. Particle Gun destroyed. Machine disabled. K-01 Serf collects debris. W-16 Scout sends out distress signal. K-01 Serf collects debris. Hvy. Assault Rifle destroyed. Imp. Heat Sink destroyed. K-01 Serf collects debris. Map ----- +----------------------------------------------------+ | ?????????????????????????????????????????????????? | | ?????????????????????????????????????????????????? | | ?????????????????????????????????????????????????? | | ?????????????????????????????????????????????????? | | ?????????????????????????????????????????????????? | | ?????????????????????????????????????????????????? | | ?????????????????????????????????????????????????? | | ?????????????????????????????????????????????????? | | ?????????????????????????????????????????????????# | | ????????????????????????????????????????????????## | | ????????????????????????? ????????????????????# | | ???????????????????????? #??????????????????# | | ???????????????????????? ???????????????????#^ | | ???????????????????????? k????????????########^ | | ???????????????????????? k ????????????# [ #^ | | ???????????????????????? ????????????#] # | | ????????????????????##### #????????????# + | | ???????????????????? #????????????# """ # | | ????????????????????? +????????????# """ # | | ?????????????????????? Y#????????????# """ # | | ?????????????????????? #????????????######## | | ???????????????????????r #????????????# # | | ????????????????######?# #????????????# "" # | | ???????????????#""|"!""# Y #????????????# ""S + | | ???????????????# "| ! # #????????????# "" # | | ??????????? # # @ #????????????# # | | ??????????? #????????????# # | | ??????????? w #????????????######## | | ??????????? ss #???????????????????# | | ???????????##/## # % #???????????????????# | | ???????????????######### % #???????????????????# | | ???????????????????# + ??????????????# | | ???????????????????# # #???????????## | | ???????????????????# #?? #???????????## | | ???????????????????# ######????###???????????## | | ???????????????????# #????#####??????????????## | | ???????????????##### ###### # ########### | | ?????????????? + / # + | | ???????????"" ##### ######[ !# # "T" ! # | | ???????????????????##+##????## ##?????# """ # | | ??????????????????? ??????# #??????# # | | ?????????????????? =????# #??????########### | | ????????????????? ??# ###########?????## | | ???????????????? """ """ """ # # #?????## | | ???????????????# """ """ """ + # ######## | | ???????????????# """ """ """ # # # | | ???????????????#??############ # + | | ???????????????????# ## # #^ | | ???????????????????# ## # # ####### | | ???????????????????# ## # # ### | +----------------------------------------------------+ Best States ------------- Heat Dissipation 56 Energy Generation 10 Energy Capacity 250 Matter Stores 266 Matter Capacity 300 Sight Range 16 Terrain Scan Density 10 ECM Strength 1 Armor Coverage 150 Evasion (%) 55 Recoil Reduction 2 Item Schematics ----------------- Imp. Heat Sink | -9/Materials | Scanalyzed Robot Schematics ------------------ None Fabricated ------------ Nothing Alien Tech Used ----------------- None Achievements -------------- Hey, That's Mine! Part-time Mechanic Risk Taker Challenges ------------ None Game ------ Seed CoolingHackingScanner Manual? 0 Play Time 00:37:48 Cumulative 1.8 hours Start 2024.07.03 @ 18:12:29 End 2024.07.03 @ 18:49:40 Sessions 1 Manual Loads 0 Difficulty Rogue Special Mode None Game No. 4 Rogue 4 Adventurer 0 Explorer 0 Win Type - Total 0 Types 0/0/0/0/0/0/0/0/0 Lore% 1 Gallery% 4 Achievement% 4 Wizard Run 0 Options --------- Layout 1 ASCII 0 Keyboard 0 Movement Mouse Keybinds 0 Fullscreen 1 Font 24/Crisp Map View 50x35 Zoom Use 0% Tactical HUD 0 Map Filters NONE Filters NONE Steam 1 RUN: 315149cf-f1e4-4e82-bcf7-4a8b8652604f